Cogmind - Beta 15 @@@ ROGUE MODE // 2025.05.11 @ 12:47:36 Player: Epsilon 11 Result: Destroyed by 8L-PRY(R) with Subdweller Machine Gun Performance ------------- Evolutions (0) 0 Regions Visited (2) 400 Robots Destroyed (29) 145 Value Destroyed (648) 648 Prototype IDs (5) 100 Alien Tech Used (0) 0 Bonus (0) 0 TOTAL SCORE: 1293 Bonus ------- None Cogmind --------- Core Integrity 0/250 Matter 115/300 Energy 200/200 System Corruption 3% Temperature Cool (0) Movement Rolling (210) Ox8 Location -10/Subcaves Parts ------- > --- POWER (1) -------- Subdweller Power Source > --- PROPULSION (2) --- Wheel Compact Wheel > --- UTILITY (2) ------ Humpback > --- WEAPON (2) ------- Subdweller Machine Gun Subdweller Machine Gun > --- INVENTORY (35) --- Subdweller Power Source Aluminum Leg Subdweller Monowheel Subdweller Monowheel Subdweller Monowheel Heat Sink Disposable Heat Sink Disposable Heat Sink Disposable Heat Sink Huge Storage Unit Humpback Structural Scanner Subdweller Optics Subdweller Optics Scrap Shield Medium Laser Subdweller Laser Beam Cannon Beam Cannon Assault Rifle Assault Rifle Subdweller Machine Gun Grenade Launcher Mining Laser Multitool Flamer Shrapnel Trap Peak State ------------ > --- POWER ------------ Subdweller Power Source > --- PROPULSION ------- Wheel Compact Wheel > --- UTILITY ---------- Humpback > --- WEAPON ----------- Battle Rifle Subdweller Machine Gun > --- INVENTORY -------- Subdweller Power Source Subdweller Power Source Aluminum Leg Wheel Compact Wheel Subdweller Monowheel Subdweller Monowheel Subdweller Monowheel Heat Sink Disposable Heat Sink Disposable Heat Sink Huge Storage Unit Humpback Structural Scanner Subdweller Optics Subdweller Optics Medium Laser Subdweller Laser Beam Cannon Beam Cannon Assault Rifle Subdweller Machine Gun Grenade Launcher Mining Laser Multitool Flamer [Rating: 14] Favorites ----------- Power Subdweller Power Source Engine Subdweller Power Source Propulsion Wheel Wheel Wheel Utility Humpback Storage Humpback Processor Targeting Computer Weapon Assault Rifle Energy Cannon Beam Cannon Ballistic Gun Assault Rifle Launcher Grenade Launcher Special Weapon Mining Laser Build | -11 -10 -10 ------- Run | Yrd Mat Sub Slots Evolved . | . . . Power . | . . . Propulsion . | . . . Utility . | . . . Weapon . | . . . Parts Attached 25 | 5 6 14 Power 4 | . 1 3 Engine 4 | . 1 3 Core . | . . . Reactor . | . . . Propulsion 7 | 2 2 3 Treads . | . . . Leg . | . . . Wheel 7 | 2 2 3 Hover . | . . . Flight . | . . . Utility 5 | 1 2 2 Device . | . . . Storage 4 | 1 1 2 Processor 1 | . 1 . Hackware . | . . . Protection . | . . . Artifact . | . . . Weapon 9 | 2 1 6 Energy Gun . | . . . Energy Cannon 2 | . . 2 Ballistic Gun 5 | 2 . 3 Ballistic Cannon . | . . . Launcher 1 | . . 1 Special Weapon 1 | . 1 . Impact Weapon . | . . . Slashing Weapon . | . . . Piercing Weapon . | . . . Special Melee Weapon . | . . . Unidentified Prototypes . | . . . Parts Lost 8 | . . 8 Power 3 | . . 3 Propulsion 3 | . . 3 Utility . | . . . Weapon 2 | . . 2 Highest Loss Streak 4 | . . 4 To Critical Strikes 1 | . . 1 Average Backups 18 | 2 10 21 Power 1 | 1 1 1 Propulsion 4 | . 3 4 Utility 5 | . 1 7 Weapon 6 | . 4 7 Tool/Special . | . . . Unused Backups 21 | . 1 20 Power 1 | . . 1 Propulsion 5 | . 1 4 Utility 9 | . . 9 Weapon 5 | . . 5 Tool/Special 1 | . . 1 Average Slot Usage (%) 88 | . 97 84 Engine 13 | . 13 13 Wheel 27 | . 26 27 Storage 14 | . 14 14 Processor 4 | . 13 . Energy Cannon 6 | . . 9 Ballistic Gun 16 | . 27 11 Launcher 2 | . . 3 Special Weapon 2 | . . 3 Peak Build Rating 14 | 5 8 14 Average Rating 10 | 3 7 11 On Entrance 4 | . 5 8 Naked Turns . | . . . Heaviest Build 213 | 9 89 213 Greatest Support 26 | 20 20 26 Greatest Overweight (x) 10 | . 8 10 Average Overweight (x) 5 | . 2 7 Largest Inventory Capacity 35 | 8 25 35 Average Capacity 30 | 7 21 34 Most Carried 29 | 5 13 29 Average Carried 19 | 2 10 22 Final Capacity 35 | 8 25 35 Final Carried 29 | 5 12 29 Class Distribution -------------------- 69% | Hauler-Mutant 30% | Mutant Dominant Class ---------------- Mutant | -10/Materials Hauler-Mutant | -10/Subcaves Resources | -11 -10 -10 ----------- Run | Yrd Mat Sub Matter Collected 838 | 250 250 338 Remotely . | . . . Salvage Created 691 | . 330 361 Parts 62 | . 37 25 Haulers Intercepted . | . . . Recyclers Shooed . | . . . Parts Field Recycled . | . . . Retrieved Matter . | . . . Parts Self-Destructed 14 | . . 14 Prevented . | . . . Kills | -11 -10 -10 ------- Run | Yrd Mat Sub Combat Hostiles Destroyed 22 | . 10 12 Guns 11 | . 10 1 Cannons 4 | . . 4 AOE 7 | . . 7 Classes Destroyed 7 | . 4 3 Worker 4 | . 4 . Turret 2 | . . 2 Watcher 1 | . 1 . Swarmer 10 | . 8 2 Grunt 2 | . 2 . Artisan 1 | . . 1 Subdweller 10 | . . 10 Best Kill Streak 5 | . 5 2 Combat Bots Only 5 | . 5 2 Max Kills in Single Turn 2 | . 2 2 Gunslinging 1 | . 1 . Exploded 2 | . . 2 Melee . | . . . Uniques/NPCs Destroyed . | . . . Combat | -11 -10 -10 -------- Run | Yrd Mat Sub Hostile Shots Fired 166 | . 39 127 Missed 70 | . 14 56 Hits 96 | . 25 71 Projectile 96 | . 25 71 AOE 3 | . . 3 Critical Strikes 1 | . . 1 Damage Taken 1372 | . 223 1149 Core 256 | . 24 232 Absorbed by Shields . | . . . Core Remaining (%) 100 | 100 . . Volleys Fired 103 | . 31 72 Largest 2 | . 2 2 Hottest 125 | . 100 125 Shots Fired 176 | . 61 115 Gun 111 | . 60 51 Cannon 26 | . . 26 Launcher 12 | . . 12 Special 27 | . 1 26 Kinetic 111 | . 60 51 Thermal 53 | . 1 52 Explosive 12 | . . 12 Electromagnetic . | . . . Robot Hit Streak 8 | . 5 8 Robot Miss Streak 6 | . 6 5 Penetration Max . | . . . Secondary Targets 1 | . 1 . Max Gunslinging Chain 1 | . 1 . Shots Hit Robots 78 | . 27 51 Core Hits 45 | . 18 27 Critical Kills . | . . . Critical Parts Destroyed 1 | . 1 . Critical Strikes 1 | . 1 . Destroy 1 | . 1 . Melee Attacks . | . . . Impact . | . . . Slashing . | . . . Piercing . | . . . Sneak Attacks . | . . . Combat Hostiles . | . . . Follow-up Attacks . | . . . Damage Inflicted 1822 | . 409 1413 Guns 838 | . 409 429 Cannons 300 | . . 300 Explosions 684 | . . 684 Melee . | . . . Ramming . | . . . Kinetic 838 | . 409 429 Thermal 300 | . . 300 Explosive 684 | . . 684 Electromagnetic . | . . . Impact . | . . . Slashing . | . . . Piercing . | . . . Highest Corruption 3 | . 3 3 Average Corruption 2 | . 1 3 Corruption Purged . | . . . Corruption Blocked . | . . . Effects 50 | . 6 44 Message Errors 15 | . 2 13 Matter Fused 9 | . . 9 Heat Flow Errors 8 | . 2 6 Energy Discharges 4 | . . 4 Parts Rejected 1 | . 1 . Parts Fused 2 | . . 2 Data Loss (minor) 7 | . 1 6 Data Loss (major) 3 | . . 3 Misfires 1 | . . 1 Overload Shots . | . . . Overflow Damage . | . . . Projectiles . | . . . Explosions . | . . . Melee . | . . . Knockbacks . | . . . Impact . | . . . Kinetic . | . . . Secondary . | . . . Self-Inflicted Damage 31 | . . 31 Shots 3 | . . 3 Rammed . | . . . Targets Rammed . | . . . Kicked . | . . . Crushed . | . . . Highest Temperature 278 | . 278 250 Average Temperature 118 | . 125 112 Received Heat Transfer 282 | . 24 258 Siege Activations . | . . . Martial Activations . | . . . Shielding Activations . | . . . Robots Disrupted . | . . . Combat Hostiles . | . . . Robots Corrupted . | . . . Combat Hostiles . | . . . Parts Fried . | . . . Impact Corruptions . | . . . Robots Melted . | . . . Combat Hostiles . | . . . Parts Melted 3 | . . 3 Heat Transferred 629 | . . 629 Parts Sabotaged . | . . . Parts Stolen . | . . . Parts Stripped . | . . . Power Chain Reactions . | . . . Alert | -11 -10 -10 ------- Run | Yrd Mat Sub Maximum Alert Level . | . . . Low Security (%) 100 | 100 100 . Level 1 . | . . . Level 2 . | . . . Level 3 . | . . . Level 4 . | . . . Level 5 . | . . . High Security . | . . . Max Security . | . . . Peak Influence 126 | . 126 . Initial . | . . . Average 44 | . 47 . Influence Increases 626 | . 321 305 Destroy 0b10 Robot/C 280 | . 200 80 Destroy 0b10 Robot/NC 25 | . 25 . Destroy Leader 42 | . 42 . Successful Hack 38 | . 38 . Destroy Structure 1 | . 1 . Partial Spotted 15 | . 15 . Lose Combat Pursuer 225 | . . 225 Influence Decreases 626 | . 253 373 Entered New Map 33 | . . 33 Time Decay 533 | . 253 280 Lost Part 60 | . . 60 Squads Dispatched 1 | . 1 . Investigation . | . . . Extermination . | . . . Reinforcement 1 | . 1 . Assault . | . . . Garrison . | . . . Intercept . | . . . Searches Triggered . | . . . Construction Impeded . | . . . Haulers Reinforced . | . . . Active Scanning Responses . | . . . Cargo Convoy Interrupts . | . . . Stealth | -11 -10 -10 --------- Run | Yrd Mat Sub Distress Signals 2 | . 2 . Communications Jammed . | . . . Distress Signals . | . . . Times Spotted 44 | . 19 25 Peak Tracking Total 7 | . 7 4 Tactical Retreats 6 | . . 6 Traps | -11 -10 -10 ------- Run | Yrd Mat Sub Traps Triggered 2 | . 2 . Indirectly . | . . . Trap Hack Attempts . | . . . Triggered . | . . . Disarmed . | . . . Reprogrammed . | . . . Reused . | . . . Traps Extracted . | . . . Installed . | . . . Triggered . | . . . Most Traps Carried 1 | . . 1 Machines | -11 -10 -10 ---------- Run | Yrd Mat Sub Machines Disabled 2 | . . 2 Max in Single Turn 1 | . . 1 Machines Repaired . | . . . Machines Dismantled . | . . . Machines Sabotaged . | . . . Overloaded Fab Kills . | . . . Hacking | -11 -10 -10 --------- Run | Yrd Mat Sub Machines Accessed 7 | . 7 . Terminals 7 | . 7 . Fabricators . | . . . Repair Stations . | . . . Recycling Units . | . . . Scanalyzers . | . . . Garrison Access . | . . . Total Hacks 21 | . 21 . Successful 14 | . 14 . Failed 7 | . 7 . Catastrophic . | . . . Database Lockouts . | . . . Manual 17 | . 17 . Terminals 21 | . 21 . Fabricators . | . . . Repair Stations . | . . . Recycling Units . | . . . Scanalyzers . | . . . Garrison Access . | . . . Terminal Hacks 5 | . 5 . Robot Analysis 1 | . 1 . Prototype ID Bank 2 | . 2 . Terminal Index 1 | . 1 . Hauler Manifests 1 | . 1 . Fabricator Hacks . | . . . Repair Station Hacks . | . . . Recycling Unit Hacks . | . . . Scanalyzer . | . . . Garrison Access Hacks . | . . . Unauthorized Hacks 9 | . 9 . Terminals 9 | . 9 . Assimilate 1 | . 1 . Botnet 3 | . 3 . Skim 5 | . 5 . Fabricators . | . . . Repair Stations . | . . . Recycling Units . | . . . Scanalyzers . | . . . Garrison Access . | . . . Data Cores Recovered . | . . . Used . | . . . Hacking Detections 6 | . 6 . Full Trace Events . | . . . Feedback Events . | . . . Feedback Blocked . | . . . Robot Schematics Acquired . | . . . Robots Built . | . . . Authchips . | . . . Time . | . . . Total Robot Build Rating . | . . . Part Schematics Acquired . | . . . Parts Built . | . . . Authchips . | . . . Time . | . . . Total Part Build Rating . | . . . Parts Repaired . | . . . Time . | . . . Parts Recycled . | . . . Recycled Matter . | . . . Retrieved Matter . | . . . Retrieved Components . | . . . Parts Scanalyzed . | . . . Part Schematics Acquired . | . . . Parts Damaged . | . . . Bothacking | -11 -10 -10 ------------ Run | Yrd Mat Sub Used RIF Installer . | . . . Robots Hacked . | . . . Non-combat . | . . . Combat . | . . . Robot Hacks Applied . | . . . Relay Couplers Released . | . . . Fabnet Peak Effective % . | . . . Robots Rewired . | . . . Allies Hacked . | . . . Hacks Repelled . | . . . Allies | -11 -10 -10 -------- Run | Yrd Mat Sub Total Allies . | . . . Largest Group . | . . . Highest-Rated Group . | . . . Highest-Rated Ally . | . . . Total Orders . | . . . Ally Attacks . | . . . Total Damage . | . . . Kills . | . . . Allies Corrupted . | . . . Allies Melted . | . . . Intel | -11 -10 -10 ------- Run | Yrd Mat Sub Active Infowar (turns) . | . . . Robot Analysis Total 1 | . 1 . Derelict Logs Recovered . | . . . Drone Launches . | . . . Drone Recoveries . | . . . Exploration | -11 -10 -10 ------------- Run | Yrd Mat Sub Turns Passed 3003 | 43 841 2119 Spaces Moved 1437 | 40 524 873 Core 3 | 3 . . Treads . | . . . Legs . | . . . Wheels 1434 | 37 524 873 Hover . | . . . Flight . | . . . Fastest Speed 50 | 50 80 140 Average Speed 172 | 77 123 206 Slowest Speed 230 | 80 200 230 Overloaded Moves . | . . . Propulsion Burnouts . | . . . Robots Hopped . | . . . Potential Cave-ins 1 | . . 1 Cave-ins Triggered . | . . . Exploration Rate (%) 48 | 2 85 59 Regions Visited 2 Branch Regions 1 Pre-discovered Areas . | . . . Known Exits Taken 1 | . 1 . Unknown Exits Taken 1 | 1 . . Scrap Searched 1 | . . 1 Spaces Dug 1 | . 1 . Terrain Destroyed 55 | . 1 54 Melee . | . . . Projectile 1 | . 1 . AOE 54 | . . 54 Terrain Rammed . | . . . Walls Destroyed . | . . . Machines Disabled . | . . . Actions | -11 -10 -10 --------- Run | Yrd Mat Sub Total 1724 | 49 652 1023 Wait 78 | . 75 3 Move 1435 | 39 523 873 Hop . | . . . Pick Up 63 | 5 11 47 Fast Attach 9 | 5 2 2 Attach 10 | . 2 8 Detach . | . . . Swap 19 | . 4 15 Drop 7 | . 4 3 Fire 103 | . 31 72 Melee . | . . . Ram . | . . . Kick . | . . . Crush . | . . . Escape Stasis . | . . . Rewire . | . . . Trap . | . . . Miscellaneous . | . . . Route ------- -11/Scrapyard -10/Materials (discovered 5 exits: *Mat x3 / [*Min] / *Sub) -10/Subcaves (discovered 3 exits: *Mat x2 / [*Rec]) History --------- Turn | Location | Event 17 | -11/Scrapyard | Discovered new exit (range 15) 44 | -11/Scrapyard | Entered Materials 181 | -10/Materials | Discovered new exit (range 15) 313 | -10/Materials | Build established: Mutant 676 | -10/Materials | Discovered new exit (range 8) 731 | -10/Materials | Learned 4 Recycling zone layouts 773 | -10/Materials | Identified exit to Subcaves 773 | -10/Materials | Identified exit to Materials 806 | -10/Materials | Learned 2 Storage zone layouts 827 | -10/Materials | Learned Storage trap positions 840 | -10/Materials | Learned Storage emergency access door positions 844 | -10/Materials | Learned location of 2 exits from Materials 880 | -10/Materials | Learned location of 3 exits from Materials 885 | -10/Materials | Entered Subcaves 886 | -10/Subcaves | Identified exit to Materials 1230 | -10/Subcaves | Build established: Hauler-Mutant 1597 | -10/Subcaves | Discovered new exit (range 14) 1730 | -10/Subcaves | Core integrity fell below 50% 2575 | -10/Subcaves | Ambushed by Subdwellers from Twisted Machinery 2616 | -10/Subcaves | Lost 4 parts (1p2n1w) 2623 | -10/Subcaves | Core integrity fell below 20% 2878 | -10/Subcaves | Shifting Twisted Machinery released Scrap Shield 2894 | -10/Subcaves | Shifting Twisted Machinery released Shrapnel Trap 3004 | -10/Subcaves | Destroyed by 8L-PRY(R) with Subdweller Machine Gun Last Messages --------------- 02656_ Acquired 2 matter. 02661_ Acquired Sub. Machine Gun. 02664_ Acquired Sub. Monowheel. 02667_ Acquired Sub. Power Source. 02670_ Acquired Sub. Monowheel. 02675_ Acquired 24 matter. 02679_ Acquired Mining Laser. 02682_ Acquired Disposable Heat Sink. 02686_ Acquired Sub. Laser. 02689_ Acquired Disposable Heat Sink. 02692_ Acquired Sub. Machine Gun. 02698_ /<2|GNIPJHYDK>M1Q7|YT8DYOY9ERFUL/ 02734_ System corrupted: Component data lost. 02768_ System corrupted: Substantial component data lost. Scrap Shield falls loose from the Twisted Machinery. Shrapnel Trap falls loose from the Twisted Machinery. 02897_ Acquired Scrap Shield. 02925_ GGW5PYPZZZFT5OBDYI8YSXK0XRGURQZ17QQV% 02935_ Acquired Shrapnel Trap. 02972_ ED0A04H 2E|N ZDX5=DJY5P DCXI4X Map ----- +----------------------------------------------------+ | | | | | | | | | ?????????????????????????????????????????????????? | | ?????????????????????????????????????????????????? | | ?????????????????????????????????????????????????? | | ?????????????????????????????????????????????????? | | ?????????????????????????????????????????????????? | | ?????????????????????????????????????????????????? | | ?????????????????????????????????????????????????? | | ?????????????????????????????????????????????????? | | ?????????????????????????????????????????????????? | | ?????????????????????????????????????????????????? | | ?????????????????????????????????????????????????? | | ?????????????????????????????????????????????????? | | ?????????????????????????????????????????????????? | | ?????????????????????????????????????????????????? | | ?????????????????????????????????????????????????? | | ???????????????????###???????????????????????????? | | ???????????????????? ###????????????????????????? | | ????????????????????? ##????????????????####??? | | ??????????????????????# #???????????????## #### | | ???????????????????????# ####???????????## ## | | ????????????????????????# #???????????# | | ???????????????????????##@ #?####??###### | | ???????????????????????#""RR### #?## ## "" " | | ???????????????????????#" "" #?#" "" " | | ??????????????????? #" ""# ##?#" "" ### " | | ?????????????????? " ###""### #??##" " ##?##" | | ?????????????????? ?#" ??# "## ##?##""" ###### | | ????????????????????##???# ### ###""" "##? | | ?????????????????????????###### "" "" " ## | | ?????????????????????????# "" "" """ | | ?????????????????????????### "" " | | ???????????????????????????## # "" " # | | ????????????????????????????### ""###"""## | | ??????????????????????????????##########"##?#####? | | ???????????????????????????????????????###???????? | | ?????????????????????????????????????????????????? | | ?????????????????????????????????????????????????? | | ?????????????????????????????????????????????????? | | ?????????????????????????????????????????????????? | | ?????????????????????????????????????????????????? | | ?????????????????????????????????????????????????? | | ?????????????????????????????????????????????????? | | ?????????????????????????????????????????????????? | | ?????????????????????????????????????????????????? | | ?????????????????????????????????????????????????? | | ?????????????????????????????????????????????????? | +----------------------------------------------------+ Best States ------------- Heat Dissipation 25 Energy Generation 15 Energy Capacity 250 Matter Stores 300 Matter Capacity 300 Sight Range 16 Terrain Scan Density 10 Evasion (%) 44 Targeting Accuracy 5 Item Schematics ----------------- None Robot Schematics ------------------ None Fabricated ------------ Nothing Repaired ---------- Nothing Alien Tech Used ----------------- None Achievements -------------- None Challenges ------------ None Game ------ Seed EncryptedSpectralCyclogen Manual? 0 Play Time 00:23:39 Cumulative 217.5 hours Start 2025.05.11 @ 12:24:02 End 2025.05.11 @ 12:47:36 Sessions 1 Manual Loads 0 Difficulty Rogue Special Mode None Game No. 97 Rogue 54 Adventurer 43 Explorer 0 Win Type - Total 6 Types 4/0/1/0/0/0/0/1/0/0 Lore% 67 Gallery% 65 Achievement% 61 Wizard Run 0 Options --------- Layout 0 ASCII 0 Keyboard 0 Movement Mouse Keybinds 0 Fullscreen 1 Font 24/Smallcaps Map View 76x50 Zoom Use 0% Tactical HUD 1 Map Filters NONE Filters NONE Steam 1 RUN: fbeb3080-7d5e-4bbf-8e44-8bfd337d7bc8